[Event "Karel Janecek Open 2024"]
[Site "Prague"]
[Date "2024.03.03"]
[Round "5.15"]
[White "Popovic, Dusan"]
[Black "Novotny, Michal"]
[Result "1/2-1/2"]
[ECO "C07"]
[WhiteElo "2504"]
[BlackElo "2260"]
[Annotator "TA"]
[PlyCount "39"]
[EventDate "2024.02.22"]
[EventType "swiss"]
[EventCountry "CZE"]
[SourceTitle "playchess.com"]
[Source "ChessBase"]
[SourceQuality "1"]
[TimeControl "40/5400+30:1800+30"]

{[%evp 19,39,16,26,21,26,8,16,1,23,15,33,20,36,28,25,5,33,29,31,27,30,0]} 1. e4 {[%emt 0:00:04]} e6 {[%emt 0:14:45]} 2. d4 {[%emt 0:00:06]} d5 {[%emt 0:00:03]} 3. Nd2 {[%emt 0:00:06]} c5 {[%emt 0:00:05]} 4. Ngf3 {[%emt 0:00:14]} cxd4 {[%emt 0:00:21]} 5. exd5 {[%emt 0:00:15]} Qxd5 {[%emt 0:00:30]} 6. Bc4 {[%emt 0:00:08]} Qd6 {[%emt 0:00:03]} 7. O-O {[%emt 0:00:39]} Nf6 {[%emt 0:00:04]} 8. Nb3 {[%emt 0:00:47]} Nc6 {[%emt 0:00:09]} 9. Nbxd4 {[%emt 0:00:50]} Nxd4 {[%emt 0:00:14]} 10. Nxd4 {[%emt 0:00:04]} Be7 {[%emt 0:00:59]} 11. Re1 {[%emt 0:09:33]} O-O {[%emt 0:03:15]} 12. c3 {[%emt 0:03:06]} Qc7 {[%emt 0:01:34]} 13. Bb3 {[%emt 0:05:51] The position is equal.} a5 {[%emt 0:03:19]} 14. a4 {[%emt 0:05:07]} Qb6 {[%emt 0:09:10]} 15. Qe2 {[%emt 0:24:31]} Bc5 {[%emt 0:11:54]} 16. Nb5 {[%emt 0:00:46]} Bd7 {[%emt 0:00:28]} 17. Bg5 {[%emt 0:00:36]} Bxb5 {[%emt 0:28:40]} 18. axb5 {[%emt 0:00:10]} Be7 {[%emt 0:00:10]} 19. Red1 {[%emt 0:13:06]} h6 {[%emt 0:03:03]} 20. Bxf6 {[%emt 0:15:46] Weighted Error Value: White=0.10 (very precise) /Black=0.07 (flawless) .  Inaccurate:     	White=1     	Black=1      OK:         	White=1     	Black=5} 1/2-1/2

[Event "Karel Janecek Open 2024"]
[Site "Prague"]
[Date "2024.03.03"]
[Round "5.16"]
[White "Kraus, Tomas"]
[Black "Vojta, Jakub"]
[Result "1-0"]
[ECO "B15"]
[WhiteElo "2484"]
[BlackElo "2252"]
[Annotator "TA"]
[PlyCount "89"]
[EventDate "2024.02.22"]
[EventType "swiss"]
[EventCountry "CZE"]
[SourceTitle "playchess.com"]
[Source "ChessBase"]
[SourceQuality "1"]
[TimeControl "40/5400+30:1800+30"]

{[%evp 17,89,6,18,8,18,12,13,14,14,16,6,11,19,18,40,43,62,56,61,60,68,67,64,26,25,14,28,22,42,3,27,25,41,32,43,34,50,54,75,75,75,55,52,56,49,50,39,39,70,31,62,60,83,56,71,59,84,19,74,56,62,14,150,150,149,175,175,159,174,166,174,164,186,162]} 1. e4 {[%emt 0:22:57]} c6 {[%emt 0:01:31]} 2. d4 {[%emt 0:00:40]} d5 {[%emt 0:00:07]} 3. Nc3 {[%emt 0:00:17]} dxe4 {[%emt 0:00:05]} 4. Nxe4 {[%emt 0:00:05]} Nf6 {[%emt 0:00:05]} 5. Nxf6+ {[%emt 0:00:04]} exf6 {[%emt 0:00:05]} 6. c3 {[%emt 0:00:39]} Bd6 {[%emt 0:00:15]} 7. Bd3 {[%emt 0:00:17]} O-O {[%emt 0:00:06]} 8. Qf3 {[%emt 0:00:02]} Re8+ {[%emt 0:03:24]} 9. Ne2 {[%emt 0:00:05]} Nd7 {[%emt 0:01:16]} 10. O-O {[%emt 0:04:33]} Nf8 {[%emt 0:01:37]} 11. Bf4 {[%emt 0:00:34]} Ng6 {[%emt 0:07:08]} 12. Bxd6 {[%emt 0:02:01] The position is equal.} Qxd6 {[%emt 0:00:03]} 13. Rfe1 {[%emt 0:00:45]} Be6 {[%emt 0:06:54]} 14. Qg3 {[%emt 0:03:40]} Qxg3 {[%emt 0:04:36]} 15. hxg3 {[%emt 0:00:20]} Bd5 {[%emt 0:03:31]} 16. f3 {[%emt 0:04:15]} Re3 {[%emt 0:02:53]} 17. Red1 {[%emt 0:00:58]} Rae8 {[%emt 0:03:38][%cal Oe3d3] Hoping for ...Rxd3!} 18. Kf2 {[%emt 0:00:17]} R3e7 {[%emt 0:03:54]} 19. c4 {[%emt 0:01:42]} Be6 {[%emt 0:00:02]} 20. Rd2 {[%emt 0:04:08]} Rd8 {[%emt 0:02:55]} 21. Rad1 {[%emt 0:02:35][%cal Od4d5]} Red7 {[%emt 0:00:50]} 22. b3 {[%emt 0:00:45]} Kf8 {[%emt 0:04:48]} 23. Bc2 {[%emt 0:06:45]} h6 {[%emt 0:18:30]} 24. g4 {[%emt 0:05:23]} Kg8 {[%emt 0:02:55]} 25. Rh1 {[%emt 0:08:31]} a6 {[%emt 0:05:25]} 26. Rh5 {[%emt 0:02:56]} Ne7 {[%emt 0:04:08]} 27. a4 {[%emt 0:02:08][%cal Ba2a4,Ba4a5][%mdl 32]} Kf8 {[%emt 0:05:59] [#]} 28. a5 $1 {[%emt 0:01:54]} Ng8 {[%emt 0:00:23]} 29. Rh1 {[%emt 0:07:58]} Ne7 {[%emt 0:01:13]} 30. Rhd1 {[%emt 0:06:26]} f5 {[%emt 0:00:20]} 31. gxf5 {[%emt 0:01:03]} Bxf5 {[%emt 0:00:11]} 32. Be4 {[%emt 0:00:19]} Rd6 {[%emt 0:06:02]} 33. Nc3 {[%emt 0:00:41]} Bc8 {[%emt 0:01:09]} 34. Na4 {[%emt 0:01:07]} f5 {[%emt 0:00:39]} 35. Bc2 {[%emt 0:00:30]} g5 {[%emt 0:02:32]} 36. g3 {[%emt 0:01:11]} Kg7 {[%emt 0:01:40]} 37. Nc5 {[%emt 0:00:31]} (37. Nb6 $16) 37... Ng8 {[%emt 0:03:03]} (37... h5 $11 {remains equal.}) 38. Bb1 {[%emt 0:05:09]} Nf6 {[%emt 0:00:15]} 39. Re2 {[%emt 0:01:26]} (39. Na4 $14) 39... Kf8 {[%emt 0:03:42] [#]} (39... Kf7 $11) 40. Re5 $1 $16 {[%emt 0:02:16] White has more active pieces. White is clearly better.} Rxd4 {[%emt 0:02:09]} 41. Rxd4 {[%emt 0:30:56]} Rxd4 {[%emt 0:30:02]} 42. Bxf5 {[%emt 0:00:16]} Bxf5 {[%emt 0:00:00]} 43. Rxf5 {[%emt 0:00:00]} Ke7 {[%emt 0:00:00] Against Ne6} 44. Nxb7 {[%emt 0:00:00]} Nd7 {[%emt 0:00:00]} 45. Ke2 {[%emt 0:00:00] Inhibits Rd3.   Weighted Error Value: White=0.10 (very precise) /Black=0.17 (very precise) .  Mistake:       	White=2     	Black=2      Inaccurate:     	White=4     	Black=2      OK:         	White=12    	Black=10     Best:        	---       	Black=1      Strong:       	White=2     	---} 1-0

[Event "Karel Janecek Open 2024"]
[Site "Prague"]
[Date "2024.03.03"]
[Round "5.17"]
[White "Belenkaya, Dina"]
[Black "Sadzikowski, Daniel"]
[Result "1/2-1/2"]
[ECO "E39"]
[WhiteElo "2202"]
[BlackElo "2497"]
[Annotator "TA"]
[PlyCount "137"]
[EventDate "2024.02.22"]
[EventType "swiss"]
[EventCountry "CZE"]
[SourceTitle "playchess.com"]
[Source "ChessBase"]
[SourceQuality "1"]
[TimeControl "40/5400+30:1800+30"]

{[%evp 16,137,45,35,36,22,16,11,7,19,0,-16,4,0,9,0,0,-42,-27,-35,-43,-31,-36,-32,-25,-29,-31,-31,-29,-64,-29,-39,-36,-41,-22,-24,-37,-42,-34,-61,-95,-67,-45,-79,-37,-35,-26,-17,-16,-31,-27,-35,-35,-13,0,0,0,0,0,0,0,0,0,0,0,0,0,0,0,0,0,0,0,0,0,0,0,0,0,0,0,0,0,0,0,0,0,-49,0,0,0,0,0,0,0,0,0,0,0,0,0,0,0,0,0,0,0,0,0,0,0,0,0,0,0,0,0,0,0,0,0,0,0,0]} 1. d4 {[%emt 0:03:27]} Nf6 {[%emt 0:00:18]} 2. c4 {[%emt 0:00:18]} e6 {[%emt 0:00:09]} 3. Nc3 {[%emt 0:01:00]} Bb4 {[%emt 0:00:28]} 4. Qc2 {[%emt 0:02:38]} O-O {[%emt 0:02:08]} 5. Bg5 {[%emt 0:08:37]} h6 {[%emt 0:11:51]} 6. Bh4 {[%emt 0:00:43]} c5 {[%emt 0:00:05]} 7. dxc5 {[%emt 0:02:30]} Nc6 {[%emt 0:23:04]} 8. e3 {[%emt 0:04:26]} Bxc5 {[%emt 0:03:16]} 9. Nf3 {[%emt 0:01:58]} b6 {[%emt 0:06:12]} 10. a3 {[%emt 0:04:25]} Bb7 {[%emt 0:01:02]} 11. Rd1 {[%emt 0:01:00]} Be7 {[%emt 0:01:07]} 12. Be2 {[%emt 0:02:44]} Rc8 {[%emt 0:03:23]} 13. Qa4 {[%emt 0:07:07]} a6 {[%emt 0:01:56]} 14. O-O {[%emt 0:01:41]} Qc7 {[%emt 0:04:32]} 15. Bg3 {[%emt 0:02:01]} d6 {[%emt 0:01:06]} 16. b4 {[%emt 0:01:09][%cal Oc4c5]} Nh5 {[%emt 0:01:16]} 17. Rc1 {[%emt 0:05:31]} Nxg3 {[%emt 0:00:15]} 18. hxg3 {[%emt 0:00:07]} Nb8 {[%emt 0:03:20][%cal Bc6b8,Bb8d7,Bd7e5][%mdl 32]} 19. Nd2 {[%emt 0:02:08]} Nd7 {[%emt 0:00:44]} 20. Rfd1 {[%emt 0:04:09]} Rfd8 {[%emt 0:01:23]} 21. Qb3 {[%emt 0:01:28]} Qb8 {[%emt 0:01:00]} 22. Nf3 {[%emt 0:09:08]} Qa8 {[%emt 0:05:32]} 23. Nd4 {[%emt 0:01:58]} Bf6 {[%emt 0:03:12]} ({Of course not} 23... Bxg2 $6 24. f3 Bh3 25. Kh2 $14) 24. Bf3 {[%emt 0:01:35]} Ne5 {[%emt 0:02:14][%csl LRc4,LRf3]} 25. Bxb7 {[%emt 0:03:24]} Qxb7 {[%emt 0:00:02]} 26. Nce2 {[%emt 0:03:07]} Rd7 {[%emt 0:02:00]} 27. Rc3 {[%emt 0:02:11]} Rdc7 {[%emt 0:04:35]} 28. Rdc1 {[%emt 0:00:22]} Qe4 {[%emt 0:02:32]} 29. f3 {[%emt 0:02:34]} Qb7 {[%emt 0:01:32]} 30. g4 {[%emt 0:00:59]} g6 {[%emt 0:05:41]} ({Not} 30... Rxc4 $2 31. Rxc4 Nxc4 32. Rxc4 $18) 31. Ng3 {[%emt 0:02:33]} d5 {[%emt 0:01:50]} ({Avoid the trap} 31... Rxc4 $2 32. Rxc4 Nxc4 33. Rxc4 $18) 32. cxd5 {[%emt 0:01:32] [#] Ne4 would now be deadly.} Rxc3 {[%emt 0:00:22]} 33. Rxc3 {[%emt 0:00:02]} Rxc3 {[%emt 0:00:09]} 34. Qxc3 {[%emt 0:00:03]} exd5 {[%emt 0:00:43]} 35. Nge2 {[%emt 0:05:06]} Nc4 {[%emt 0:01:23]} 36. Nf4 {[%emt 0:00:43][%cal Oe3e4]} Be5 {[%emt 0:02:23]} 37. g3 {[%emt 0:02:09]} a5 {[%emt 0:03:39]} 38. Qd3 {[%emt 0:01:36]} Bxf4 {[%emt 0:01:20]} 39. gxf4 {[%emt 0:00:35]} axb4 {[%emt 0:00:35]} 40. axb4 $11 {[%emt 0:00:08][%mdl 4096] Endgame. KQN-KQN} Qe7 {[%emt 0:01:25][%csl LRb4,LRe3]} 41. Nc2 {[%emt 0:33:42]} Qd6 {[%emt 0:03:54]} 42. Kg2 {[%emt 0:00:00]} Qf6 {[%emt 0:08:43]} 43. Nd4 {[%emt 0:00:00]} Qe7 {[%emt 0:00:37]} 44. Nc2 {[%emt 0:00:00]} Qf6 {[%emt 0:00:09]} 45. Nd4 {[%emt 0:00:00]} Qe7 {[%emt 0:06:36][%csl LRb4,LRe3]} 46. Nc2 {[%emt 0:00:00]} Qa7 {[%emt 0:06:40]} 47. Qb3 {[%emt 0:00:00]} b5 {[%emt 0:00:02] [#] Hoping for ...Qa4.} 48. Kf2 {[%emt 0:00:03]} Qa4 {[%emt 0:00:39]} 49. Qb1 {[%emt 0:03:35]} Kf8 {[%emt 0:00:53]} 50. Ke2 {[%emt 0:00:38]} h5 {[%emt 0:00:53]} 51. f5 {[%emt 0:02:49]} (51. gxh5 $11 gxh5 52. Kf2) 51... h4 {[%emt 0:01:01]} (51... hxg4 $15 52. fxg4 g5) 52. fxg6 {[%emt 0:00:43] The position is equal.} fxg6 {[%emt 0:00:16]} 53. Kf2 {[%emt 0:01:27]} Qa7 {[%emt 0:02:11]} 54. Qa1 {[%emt 0:02:08]} Qxa1 {[%emt 0:01:12]} 55. Nxa1 {[%emt 0:00:01] KN-KN} g5 {[%emt 0:02:17]} 56. Nc2 {[%emt 0:00:10]} Ne5 {[%emt 0:00:32]} 57. Nd4 {[%emt 0:03:24]} Nd3+ {[%emt 0:00:12]} 58. Kg2 {[%emt 0:00:06]} Nxb4 {[%emt 0:01:31]} 59. Nxb5 {[%emt 0:00:13]} Nc2 {[%emt 0:00:28]} 60. Kf2 {[%emt 0:00:21]} Ke7 {[%emt 0:01:14]} 61. Nc3 {[%emt 0:01:47]} Ke6 {[%emt 0:00:21]} 62. Ne2 {[%emt 0:00:25]} Kf6 {[%emt 0:00:26]} 63. Ng1 {[%emt 0:00:08]} d4 {[%emt 0:00:31]} 64. exd4 {[%emt 0:00:37]} Nxd4 {[%emt 0:00:03]} 65. Nh3 {[%emt 0:00:26]} Ne6 {[%emt 0:00:13]} 66. Ke3 {[%emt 0:00:14]} Ke5 {[%emt 0:00:38]} 67. Kf2 {[%emt 0:01:25]} Kd4 {[%emt 0:01:04]} 68. Ke2 {[%emt 0:00:39]} Ke5 {[%emt 0:00:29] ( -> ...Nf4+)} 69. Ke3 {[%emt 0:00:11] Weighted Error Value: White=0.06 (flawless) /Black=0.04 (flawless) .  Mistake:       	White=1     	Black=1      Inaccurate:     	White=4     	Black=2      OK:         	White=33    	Black=22     Best:        	White=2     	Black=1} 1/2-1/2

[Event "Karel Janecek Open 2024"]
[Site "Prague"]
[Date "2024.03.03"]
[Round "5.18"]
[White "Al Ibrahim, Abdulrahman"]
[Black "Botez, Alexandra"]
[Result "0-1"]
[ECO "C07"]
[WhiteElo "1911"]
[BlackElo "1977"]
[Annotator "RC"]
[PlyCount "168"]
[EventDate "2024.02.22"]
[EventType "swiss"]
[EventCountry "CZE"]
[SourceTitle "playchess.com"]
[Source "ChessBase"]
[SourceQuality "1"]
[TimeControl "40/5400+30:1800+30"]

1. e4 {[%emt 0:00:06]} e6 {[%emt 0:01:15]} 2. d4 {[%emt 0:00:10]} d5 {[%emt 0:00:11]} 3. Nd2 {[%emt 0:00:07]} c5 {[%emt 0:00:08]} 4. Ngf3 {[%emt 0:00:13]} Nc6 {[%emt 0:00:44]} 5. exd5 {[%emt 0:01:24]} Qxd5 {[%emt 0:00:14]} 6. Bc4 {[%emt 0:01:18]} Qd7 {[%emt 0:00:32]} 7. dxc5 {[%emt 0:02:45]} Bxc5 {[%emt 0:01:43]} 8. O-O {[%emt 0:00:23]} Nf6 {[%emt 0:00:41]} 9. Qe2 {[%emt 0:01:43]} a6 {[%emt 0:01:43]} 10. Rd1 {[%emt 0:02:04]} Qc7 {[%emt 0:01:26]} 11. c3 {[%emt 0:11:43]} b5 {[%emt 0:03:03]} 12. Bd3 {[%emt 0:03:18]} Bb7 {[%emt 0:02:08]} 13. h3 {[%emt 0:01:58]} b4 {[%emt 0:08:49]} 14. Nb3 {[%emt 0:06:06]} Ba7 {[%emt 0:03:47]} 15. Bd2 {[%emt 0:08:11]} a5 {[%emt 0:09:15]} 16. cxb4 {[%emt 0:01:29]} axb4 {[%emt 0:12:06]} 17. Rac1 {[%emt 0:01:23]} Qd6 {[%emt 0:12:09]} 18. Bb5 {[%emt 0:09:11]} O-O {[%emt 0:01:12]} 19. Be3 {[%emt 0:05:35]} Nd5 {[%emt 0:00:48]} 20. Bc5 {[%emt 0:00:37]} Bxc5 {[%emt 0:01:02]} 21. Nxc5 {[%emt 0:00:08]} Na5 {[%emt 0:12:23]} 22. a3 {[%emt 0:19:08]} bxa3 {[%emt 0:03:48]} 23. b4 {[%emt 0:00:33]} Rfc8 {[%emt 0:02:31]} 24. Qd3 {[%emt 0:07:30]} Qe7 {[%emt 0:03:37]} 25. Qxa3 {[%emt 0:04:57]} Nc6 {[%emt 0:02:32]} 26. Qb2 {[%emt 0:01:08]} Ncxb4 {[%emt 0:01:04]} 27. Nxb7 {[%emt 0:04:19]} Qxb7 {[%emt 0:00:10]} 28. Bc4 {[%emt 0:00:44]} Qe7 {[%emt 0:11:41]} 29. Qe2 {[%emt 0:01:22]} Qf6 {[%emt 0:00:53]} 30. Qe5 {[%emt 0:03:49]} Nf4 {[%emt 0:00:45]} 31. Qxf6 {[%emt 0:00:32]} gxf6 {[%emt 0:00:06]} 32. Bf1 {[%emt 0:00:57]} Rxc1 {[%emt 0:01:23]} 33. Rxc1 {[%emt 0:00:04]} Ra2 {[%emt 0:00:32]} 34. Bc4 {[%emt 0:01:33]} Rb2 {[%emt 0:01:49]} 35. Ne1 {[%emt 0:00:54]} Na2 {[%emt 0:00:40]} 36. Rd1 {[%emt 0:00:23]} Nc3 {[%emt 0:00:10]} 37. Ra1 {[%emt 0:00:27]} Ne4 {[%emt 0:00:37]} 38. f3 {[%emt 0:00:27]} Nd6 {[%emt 0:01:06]} 39. Bf1 {[%emt 0:00:12]} Nf5 {[%emt 0:00:29]} 40. Nd3 {[%emt 0:00:41]} Nxd3 {[%emt 0:00:07]} 41. Bxd3 {[%emt 0:30:06]} Ne3 {[%emt 0:30:11]} 42. Bf1 {[%emt 0:00:14]} f5 {[%emt 0:00:19]} 43. g3 {[%emt 0:01:17]} Kg7 {[%emt 0:00:00]} 44. Ra3 {[%emt 0:00:00]} f4 {[%emt 0:00:00]} 45. gxf4 {[%emt 0:00:00]} Nxf1 {[%emt 0:00:00]} 46. Kxf1 {[%emt 0:00:00]} Rh2 {[%emt 0:00:00]} 47. f5 {[%emt 0:00:00]} e5 {[%emt 0:00:00]} 48. Ra5 {[%emt 0:00:00]} Kf6 {[%emt 0:00:00]} 49. Ra6+ {[%emt 0:00:00]} Kxf5 {[%emt 0:00:00]} 50. Rh6 {[%emt 0:00:00]} f6 {[%emt 0:00:00]} 51. Kg1 {[%emt 0:00:00]} Rb2 {[%emt 0:00:00]} 52. Rh4 {[%emt 0:00:00]} h5 {[%emt 0:00:00]} 53. Re4 {[%emt 0:00:00]} Rd2 {[%emt 0:00:00]} 54. Ra4 {[%emt 0:00:00]} Kg5 {[%emt 0:00:00]} 55. Re4 {[%emt 0:00:00]} h4 {[%emt 0:00:00]} 56. Rg4+ {[%emt 0:00:00]} Kh5 {[%emt 0:00:00]} 57. Rg8 {[%emt 0:00:00]} Kh6 {[%emt 0:00:00]} 58. Rg4 {[%emt 0:00:00]} Rd4 {[%emt 0:00:00]} 59. Rg8 {[%emt 0:00:00]} Rd7 {[%emt 0:01:19]} 60. Kf2 {[%emt 0:00:00]} Rg7 {[%emt 0:00:44]} 61. Rh8+ {[%emt 0:00:10]} Kg5 {[%emt 0:00:07]} 62. Ke3 {[%emt 0:01:09]} Rb7 {[%emt 0:00:45]} 63. Rg8+ {[%emt 0:00:16]} Kh6 {[%emt 0:05:44]} 64. Rh8+ {[%emt 0:00:23]} Kg5 {[%emt 0:00:58]} 65. Rg8+ {[%emt 0:00:14]} Kf5 {[%emt 0:00:04]} 66. Rg4 {[%emt 0:00:51]} Rh7 {[%emt 0:00:13]} 67. Ra4 {[%emt 0:02:22]} Rh6 {[%emt 0:00:54]} 68. Rg4 {[%emt 0:01:21]} Ke6 {[%emt 0:00:08]} 69. Ra4 {[%emt 0:02:05]} Kd5 {[%emt 0:02:27]} 70. Ra5+ {[%emt 0:00:56]} Kc4 {[%emt 0:00:41]} 71. Ra4+ {[%emt 0:00:27]} Kc3 {[%emt 0:00:11]} 72. Re4 {[%emt 0:02:02]} Kc2 {[%emt 0:00:55]} 73. f4 {[%emt 0:00:46]} Rh5 {[%emt 0:01:15]} 74. Kf3 {[%emt 0:00:50]} Rf5 {[%emt 0:00:40]} 75. Kg4 {[%emt 0:02:08]} Rxf4+ {[%emt 0:00:05]} 76. Rxf4 {[%emt 0:00:02]} exf4 {[%emt 0:00:06]} 77. Kxf4 {[%emt 0:00:06]} Kd3 {[%emt 0:00:06]} 78. Kg4 {[%emt 0:00:31]} Ke3 {[%emt 0:00:24]} 79. Kxh4 {[%emt 0:00:07]} f5 {[%emt 0:00:58]} 80. Kg5 {[%emt 0:00:38]} f4 {[%emt 0:00:07]} 81. h4 {[%emt 0:00:04]} f3 {[%emt 0:00:05]} 82. h5 {[%emt 0:00:02]} f2 {[%emt 0:00:06]} 83. h6 {[%emt 0:00:11]} f1=Q {[%emt 0:00:07]} 84. h7 {[%emt 0:00:03]} Qf8 {[%emt 0:00:10]} 0-1

[Event "Karel Janecek Open 2024"]
[Site "Prague"]
[Date "2024.03.03"]
[Round "5.19"]
[White "Botez, Andrea"]
[Black "Hujo, Jozef"]
[Result "1-0"]
[ECO "B07"]
[WhiteElo "1709"]
[BlackElo "1950"]
[Annotator "NA RC"]
[PlyCount "51"]
[EventDate "2024.02.22"]
[EventType "swiss"]
[EventCountry "CZE"]
[SourceTitle "playchess.com"]
[Source "ChessBase"]
[SourceQuality "1"]
[TimeControl "40/5400+30:1800+30"]

1. d4 {[%emt 0:08:13]} Nf6 {[%emt 0:00:47]} 2. Nc3 {[%emt 0:00:11]} g6 {[%emt 0:00:37]} 3. e4 {[%emt 0:00:20]} d6 {[%emt 0:00:09]} 4. Be3 {[%emt 0:00:16]} Bg7 {[%emt 0:00:42]} 5. h4 {[%emt 0:01:54]} Nc6 {[%emt 0:09:14]} 6. Be2 {[%emt 0:04:56]} h5 {[%emt 0:07:04]} 7. d5 {[%emt 0:09:33]} Ne5 {[%emt 0:01:25]} 8. f4 {[%emt 0:01:01]} Neg4 {[%emt 0:01:33]} 9. Bd4 {[%emt 0:35:20]} c5 {[%emt 0:03:29]} 10. dxc6 {[%emt 0:00:34]} bxc6 {[%emt 0:03:00]} 11. e5 {[%emt 0:01:09]} dxe5 {[%emt 0:09:00]} 12. fxe5 {[%emt 0:01:11]} Nd5 {[%emt 0:11:37]} 13. e6 {[%emt 0:01:10]} Nxc3 {[%emt 0:09:06]} 14. bxc3 {[%emt 0:06:51]} Bxd4 {[%emt 0:02:43]} 15. exf7+ {[%emt 0:00:12]} Kxf7 {[%emt 0:05:34]} 16. Qxd4 {[%emt 0:05:41]} Qxd4 {[%emt 0:08:59]} 17. cxd4 {[%emt 0:00:06]} Ne3 {[%emt 0:02:17]} 18. Kd2 {[%emt 0:00:55]} Nf5 {[%emt 0:00:36]} 19. Nf3 {[%emt 0:01:29]} Ng3 {[%emt 0:02:24]} 20. Bc4+ {[%emt 0:02:26]} Kf6 {[%emt 0:03:19]} 21. Rhe1 {[%emt 0:01:02]} Bf5 {[%emt 0:00:57]} 22. Ng5 {[%emt 0:02:17]} Rhe8 {[%emt 0:06:35]} 23. Re3 {[%emt 0:01:12]} Rad8 {[%emt 0:01:57]} 24. Kc3 {[%emt 0:01:14]} e5 {[%emt 0:03:37]} 25. dxe5+ {[%emt 0:00:19]} Rxe5 {[%emt 0:00:18]} 26. Rxe5 {[%emt 0:01:43]} 1-0

[Event "Karel Janecek Open 2024"]
[Site "Prague"]
[Date "2024.03.04"]
[Round "6.1"]
[White "Li, Di"]
[Black "Xiang, Zeyu"]
[Result "1/2-1/2"]
[ECO "C67"]
[WhiteElo "2563"]
[BlackElo "2418"]
[Annotator "TA"]
[PlyCount "84"]
[EventDate "2024.02.22"]
[EventType "swiss"]
[EventCountry "CZE"]
[SourceTitle "playchess.com"]
[Source "ChessBase"]
[SourceQuality "1"]
[TimeControl "40/5400+30:1800+30"]

{[%evp 18,84,24,24,27,13,23,21,24,20,19,6,10,14,11,4,0,5,12,4,4,0,0,3,12,4,14,0,0,0,0,0,0,0,0,0,0,0,0,0,0,0,0,0,0,0,0,0,0,0,0,0,0,0,0,0,0,0,0,0,0,0,0,0,0,0,0,0,0]} 1. e4 {[%emt 0:00:04]} e5 {[%emt 0:00:15]} 2. Nf3 {[%emt 0:00:08]} Nc6 {[%emt 0:00:11]} 3. Bb5 {[%emt 0:00:07]} Nf6 {[%emt 0:00:19]} 4. O-O {[%emt 0:00:25][%cal Bh1f1,Bf1e1,Be1e5][%mdl 32]} Nxe4 {[%emt 0:00:18]} 5. Re1 {[%emt 0:00:37]} Nd6 {[%emt 0:00:20]} 6. Nxe5 {[%emt 0:00:18]} Be7 {[%emt 0:00:11]} 7. Bf1 {[%emt 0:00:20]} Nxe5 {[%emt 0:00:10]} 8. Rxe5 {[%emt 0:00:06]} O-O {[%emt 0:00:06]} 9. d4 {[%emt 0:00:12]} Bf6 {[%emt 0:00:47]} 10. Re1 {[%emt 0:00:10]} Re8 {[%emt 0:00:17]} 11. c3 {[%emt 0:01:13]} Rxe1 {[%emt 0:01:13]} 12. Qxe1 {[%emt 0:00:04]} Ne8 {[%emt 0:00:34][%cal Bd6e8,Be8g7,Bg7f5][%mdl 32]} 13. Bf4 {[%emt 0:00:12]} d5 {[%emt 0:00:22] The position is equal.} 14. Bd3 {[%emt 0:00:17]} g6 {[%emt 0:01:12]} 15. Nd2 {[%emt 0:00:10][%cal Bb1d2,Bd2f3,Bf3e5][%mdl 32]} Ng7 {[%emt 0:00:25]} 16. Qe2 {[%emt 0:00:10]} c6 {[%emt 0:00:14]} 17. Re1 {[%emt 0:00:06]} Bf5 {[%emt 0:00:25]} 18. Bxf5 {[%emt 0:00:50]} Nxf5 {[%emt 0:00:07]} 19. Nf3 {[%emt 0:00:34]} Ng7 {[%emt 0:00:51]} 20. Be5 {[%emt 0:00:13]} Ne6 {[%emt 0:00:17]} 21. Bxf6 {[%emt 0:00:19]} Qxf6 {[%emt 0:00:07]} 22. Ne5 {[%emt 0:00:03]} Re8 {[%emt 0:00:12]} 23. Ng4 {[%emt 0:00:19]} Qd8 {[%emt 0:00:10]} 24. Qe5 {[%emt 0:00:17] [#] Strongly threatening Nf6+.} Ng7 {[%emt 0:00:20]} 25. Qxe8+ {[%emt 0:00:07]} Nxe8 {[%emt 0:00:04]} 26. Rxe8+ {[%emt 0:00:05]} Qxe8 {[%emt 0:00:04][%cal Re8e1]} 27. Nf6+ {[%emt 0:00:05]} Kf8 {[%emt 0:00:05]} 28. Nxe8 {[%emt 0:00:04]} Kxe8 $11 {[%emt 0:00:05][%mdl 4096] Endgame. KP-KP} 29. f4 {[%emt 0:00:05]} f5 {[%emt 0:00:52]} 30. Kf2 {[%emt 0:00:05]} Ke7 {[%emt 0:00:13]} 31. Ke3 {[%emt 0:00:09]} a5 {[%emt 0:00:30]} 32. a4 {[%emt 0:00:25]} Ke6 {[%emt 0:00:17]} 33. Kd3 {[%emt 0:00:09]} Kd6 {[%emt 0:00:25]} 34. b4 {[%emt 0:00:09]} b6 {[%emt 0:00:14]} 35. bxa5 {[%emt 0:00:04]} bxa5 {[%emt 0:00:04]} 36. Ke3 {[%emt 0:00:07]} Ke6 {[%emt 0:00:09]} 37. Kf3 {[%emt 0:00:06]} h6 {[%emt 0:00:25]} 38. h4 {[%emt 0:00:08]} h5 {[%emt 0:00:07]} 39. Ke3 {[%emt 0:00:02]} Kd6 {[%emt 0:00:07]} 40. Kf3 {[%emt 0:00:04]} Ke6 {[%emt 0:00:04]} 41. Ke3 {[%emt 0:30:01]} Kd6 {[%emt 0:30:09]} 42. Kf3 {[%emt 0:00:03]} Ke6 {[%emt 0:00:05] A rather calm draw.   Weighted Error Value: White=0.02 (flawless) /Black=0.01 (flawless) .  OK:         	White=15    	Black=11     Best:        	White=1     	Black=3} 1/2-1/2